{"text_format":"3","workbook":"xlsx","n_sheets":1,"sheets":["Raport privind distanța parc..."],"not_rendered":{"defined_names":6},"read":"whole","date_system":"1900"}

{"sheet":"Raport privind distanța parc...","index":0,"n_rows":20,"n_cols":9,"rows_kept":20}
[null,"Raport privind distanța parcursă și cheltuielile"]
[]
[null,"Nume angajat",null,"Tarif pe kilometru",{"v":0.27,"d":"0.27 lei"}]
[null,"ID angajat",null,"Pentru perioada",{"$f":"\"De la \"&TEXT(MIN(B9:B19),\"d.m.yyyy\")&\" Până la \"&TEXT(MAX(B9:B19),\"d.m.yyyy\")","v":"De la 4.8.2017 Până la 5.8.2017"}]
[null,"Descriere automobil",null,"Distanța totală",{"$f":"Distanța_totală","v":10}]
[null,"Autorizat de",null,"Rambursare totală",{"$f":"Rambursare_totală","v":{"v":2.7,"d":"2.70 lei"}}]
[]
[null,"Dată","Locația de pornire","Destinație","Descriere/Note","Kilometraj pornire","Kilometraj oprire","Distanța parcursă","Rambursare"]
[null,{"$f":"TODAY()","v":"2017-08-04"},"Birou de acasă","Northwind Traders","Întâlnire cu clienții",36098,36103,{"$f":"IFERROR(IF(OR(ISBLANK(F9),ISBLANK(G9)),0,G9-F9), \"\")","v":5},{"$f":"IFERROR(H9*$E$3, \"\")","v":{"v":1.35,"d":"1.35 lei"}}]
[null,{"$f":"TODAY()+1","v":"2017-08-05"},"Northwind Traders","Birou de acasă","Întâlnire cu clienții",36103,36108,{"$f":"IFERROR(IF(OR(ISBLANK(F10),ISBLANK(G10)),0,G10-F10), \"\")","v":5},{"$f":"IFERROR(H10*$E$3, \"\")","v":{"v":1.35,"d":"1.35 lei"}}]
[{"$nulls":7},0,{"v":0,"d":"0.00 lei"}]
[{"$nulls":7},0,{"v":0,"d":"0.00 lei"}]
[{"$nulls":7},0,{"v":0,"d":"0.00 lei"}]
[{"$nulls":7},0,{"v":0,"d":"0.00 lei"}]
[{"$nulls":7},0,{"v":0,"d":"0.00 lei"}]
[{"$nulls":7},0,{"v":0,"d":"0.00 lei"}]
[{"$nulls":7},0,{"v":0,"d":"0.00 lei"}]
[{"$nulls":7},0,{"v":0,"d":"0.00 lei"}]
[{"$nulls":7},0,{"v":0,"d":"0.00 lei"}]
[{"$nulls":6},"Totaluri",{"$f":"SUBTOTAL(109,Cheltuială[Distanța parcursă])","v":10},{"$f":"SUBTOTAL(109,Cheltuială[Rambursare])","v":{"v":2.7,"d":"2.70 lei"}}]